lending/lending_fUSD_20250411
["ID","MTS","AMOUNT","RATE_DAILY","PERIOD"]
[357710075,1744373432547,-45.08055083,0.00018927,2]
[357710081,1744373438343,-324.04850017,0.00018927,2]
[357710082,1744373438354,-250.0,0.00019,2]
[357710083,1744373438364,-200.0,0.00019002,7]
[357710084,1744373438374,-152.52,0.00019026,2]
[357710085,1744373438383,-250.0,0.0001935,2]
[357710086,1744373438394,-161.6282695,0.00019399,2]
[357710087,1744373438403,-641.05,0.00019462,2]
[357710088,1744373438413,-166.66,0.00019689,2]
[357710089,1744373438422,-300.0,0.00019799,2]
[357710090,1744373438432,-2350.58189725,0.000198,2]
[357710091,1744373438444,-4737.57160275,0.000198,2]
[357710092,1744373438454,-8006.9534,0.000198,2]
[357710093,1744373438464,-377.9554,0.000198,2]
[357710094,1744373438473,-1006.8399,0.000198,2]
[357710095,1744373438483,-165.58196559,0.00019825,2]
[357710096,1744373438493,-165.58196559,0.0001985,2]
[357710097,1744373438502,-386.12352591,0.00019868,2]
[357710098,1744373438511,-500.0,0.00019873,2]
[357710099,1744373438521,-499.54190584,0.00019873,2]
[357710100,1744373438530,-501.26977671,0.00019873,2]
[357710101,1744373438539,-160.42925407,0.00019873,2]
[357710102,1744373438549,-500.0,0.00019873,2]
[357710103,1744373438559,-165.58196559,0.00019875,2]
[357710104,1744373438568,-5800.0,0.00019892,2]
[357710105,1744373438579,-3961.0,0.00019893,2]
[357710106,1744373438589,-152.0,0.00019893,2]
[357710107,1744373438598,-853.0,0.00019893,2]
[357710108,1744373438608,-1121.0,0.00019893,2]
[357710109,1744373438618,-342.73150033,0.00019899,2]
[357710110,1744373438627,-339.2124142,0.00019899,2]
[357710111,1744373438637,-171.02771889,0.000199,2]
[357710112,1744373438647,-5800.0,0.000199,2]
[357710113,1744373438657,-12500.0,0.000199,2]
[357710114,1744373438666,-214.72905036,0.000199,2]
[357710115,1744373438678,-313.92863024,0.000199,2]
[357710116,1744373438688,-165.58196559,0.000199,2]
[357710117,1744373438698,-180.15320705,0.000199,2]
[357710118,1744373438707,-5433.40433815,0.000199,2]
[357710119,1744373438718,-12033.24443804,0.000199,2]
[357710120,1744373438727,-5800.0,0.000199,2]
[357710121,1744373438737,-286.38927032,0.000199,2]
[357710122,1744373438747,-189.11550886,0.000199,3]
[357710123,1744373438758,-730.60652973,0.000199,2]
[357710124,1744373438768,-188.87,0.00019901,2]
[357710125,1744373438777,-161.66172652,0.00019973,2]
[357710126,1744373438787,-165.32856909,0.00019973,2]
[357710127,1744373438796,-500.0,0.00019973,2]
[357710128,1744373438806,-501.85414142,0.00019973,2]
[357710129,1744373438815,-515.94759182,0.00019973,2]
[357710130,1744373438825,-608.78042851,0.00019973,2]
[357710132,1744373438834,-159.83865066,0.00019973,2]
[357710134,1744373438844,-511.40559174,0.00019973,2]
[357710136,1744373438853,-166.21288183,0.00019973,2]
[357710138,1744373438862,-500.0,0.00019973,2]
[357710140,1744373438871,-500.0,0.00019973,2]
[357710142,1744373438881,-500.0,0.00019973,2]
[357710144,1744373438890,-153.609,0.00019986,2]
[357710146,1744373438899,-1577.201,0.00019986,2]
[357710148,1744373438908,-2190.584389,0.00019986,2]
[357710151,1744373438918,-758.5320413,0.00019986,2]
[357710153,1744373438928,-500.0,0.00019986,2]
[357710155,1744373438938,-500.0,0.00019986,2]
[357710157,1744373438947,-993.97455656,0.00019986,2]
[357710159,1744373438956,-240.1864772,0.00019986,2]
[357710160,1744373438965,-26924.2494413,0.00019986,2]
[357710161,1744373438974,-278.96032742,0.0001999,2]
[357710162,1744373438983,-278.96032742,0.0001999,2]
[357710163,1744373438992,-278.96032742,0.0001999,2]
[357710164,1744373439003,-599.0,0.0002,2]
[357710165,1744373439012,-1409334.18079889,0.0002,2]
[357710204,1744373439731,-37085.97318875,0.0002,2]
[357710205,1744373439746,-837.3995428,0.0002,2]
[357710206,1744373439763,-7266.58376822,0.0002,2]
[357710207,1744373439775,-2606.67728998,0.0002,2]
[357710208,1744373439787,-11422.48158018,0.0002,2]
[357710209,1744373439799,-3860.3565,0.0002,2]
[357710210,1744373439810,-763.54682412,0.0002,2]
[357710215,1744373440394,-482.56,0.000199,2]
[357710216,1744373440406,-510.1169997,0.000199,2]
[357710217,1744373440602,-896.57917188,0.000199,2]
[357710218,1744373440612,-1935.23475813,0.0002,2]
[357710219,1744373440759,-11430.52892691,0.0002,2]
[357710220,1744373440814,-1710.19466749,0.0002,2]
[357710221,1744373440868,-430.71279841,0.0002,2]
[357710222,1744373440880,-1203.2499875,0.0002,2]
[357710223,1744373440891,-411.36404276,0.0002,2]
[357710241,1744373444251,-96.82132629,0.0002,2]
[357710242,1744373444267,-697.0848885,0.0002,2]
[357710279,1744373446457,-635.0,0.0002,2]
[357710281,1744373446466,-2935.5339792,0.0002,2]
[357710286,1744373446511,-51065.62535481,0.0002,2]
[357710304,1744373446672,-17414.42915259,0.0002,2]
[357710321,1744373449530,750.05,0.00027425,30]
[357710322,1744373620377,392.61933076,0.00044215,30]
[357710333,1744373860363,-200.0,0.000193,7]
[357710334,1744373860385,-500.0,0.000194,7]
[357710335,1744373860406,-800.0,0.000195,7]
[357710336,1744373860428,-1100.0,0.000196,7]
[357710337,1744373860450,-1400.0,0.000197,7]
[357710338,1744373860473,-200.0,0.000198,7]
[357710339,1744373860496,-200.0,0.000199,7]
[357710340,1744373860520,-151.0,0.0002,7]
[357710341,1744373860541,-151.0,0.0002,7]
[357710342,1744373860561,-151.0,0.0002,7]
[357710343,1744373860583,-151.0,0.0002,7]
[357710344,1744373860603,-151.0,0.0002,7]
[357710345,1744373860624,-151.0,0.0002,7]
[357710346,1744373860646,-151.0,0.0002,7]
[357710347,1744373860669,-151.0,0.0002,7]
[357710348,1744373860692,-151.0,0.0002,7]
[357710349,1744373860714,-151.0,0.0002,7]
[357710350,1744373860736,-151.0,0.0002,7]
[357710351,1744373860756,-151.0,0.0002,7]
[357710352,1744373860777,-151.0,0.0002,7]
[357710353,1744373860796,-151.0,0.0002,7]
[357710354,1744373860822,-151.0,0.0002,7]
[357710355,1744373860845,-151.0,0.0002,7]
[357710356,1744373860868,-151.0,0.0002,7]
[357710357,1744373860889,-151.0,0.0002,7]
[357710358,1744373860910,-151.0,0.0002,7]
[357710359,1744373860931,-151.0,0.0002,7]
[357710360,1744373860951,-151.0,0.0002,7]
[357710361,1744373860973,-151.0,0.0002,7]
[357710362,1744373860994,-151.0,0.0002,7]
[357710363,1744373861015,-151.0,0.0002,7]
[357710364,1744373861035,-278.48205791,0.0002,7]
[357710366,1744373885375,-1209.20085015,0.00019999,5]
[357710367,1744373892913,-2000.0,0.0002,4]
[357710368,1744373898363,-189.11550886,0.000199,3]
[357710369,1744373913681,-161.6282695,0.00019399,2]
[357710370,1744373913704,-200.0,0.00019463,2]
[357710371,1744373913728,-250.0,0.0001955,2]
[357710372,1744373913752,-500.0,0.00019773,2]
[357710373,1744373913775,-386.12352591,0.0001979,2]
[357710374,1744373913798,-339.2124142,0.00019799,2]
[357710375,1744373913821,-342.73150033,0.00019799,2]
[357710376,1744373913847,-465.52331498,0.00019799,2]
[357710377,1744373913871,-36089.4891,0.000198,2]
[357710378,1744373913893,-500.0,0.000198,2]
[357710379,1744373913915,-163.84813531,0.000198,2]
[357710380,1744373913938,-286571.0386,0.000198,2]
[357710381,1744373913960,-5242.9812,0.000198,2]
[357710382,1744373913983,-1006.8399,0.000198,2]
[357710383,1744373914007,-377.9554,0.000198,2]
[357710384,1744373914030,-2500.0,0.000198,2]
[357710385,1744373914054,-188.87,0.00019804,2]
[357710386,1744373914076,-163.84813526,0.0001982,2]
[357710387,1744373914099,-163.84813526,0.0001984,2]
[357710388,1744373914121,-163.84813526,0.0001986,2]
[357710389,1744373914143,-161.66172652,0.00019873,2]
[357710390,1744373914164,-165.32856909,0.00019873,2]
[357710391,1744373914186,-159.83865066,0.00019873,2]
[357710392,1744373914210,-500.0,0.00019873,2]
[357710393,1744373914233,-500.0,0.00019873,2]
[357710394,1744373914256,-166.21288183,0.00019873,2]
[357710395,1744373914280,-163.84813526,0.0001988,2]
[357710396,1744373914302,-367.4592904,0.000199,2]
[357710397,1744373914325,-214.72905036,0.000199,2]
[357710398,1744373914349,-163.84813526,0.000199,2]
[357710399,1744373914372,-286.38927032,0.000199,2]
[357710400,1744373914394,-5433.40433815,0.000199,2]
[357710401,1744373914416,-1259.50411438,0.000199,2]
[357710402,1744373914438,-501.85414142,0.00019973,2]
[357710403,1744373914461,-511.40559174,0.00019973,2]
[357710404,1744373914484,-4524.48926277,0.00019979,2]
[357710405,1744373914508,-26484.6214497,0.00019986,2]
[357710406,1744373914529,-1072.8972472,0.00019986,2]
[357710407,1744373914551,-40996.8450302,0.00019986,2]
[357710408,1744373914573,-705.38235101,0.00019986,2]
[357710409,1744373914595,-2053.6275431,0.00019986,2]
[357710410,1744373914616,-154.545,0.00019986,2]
[357710411,1744373914640,-1932.42,0.00019986,2]
[357710412,1744373914662,-631.0,0.0002,2]
[357710413,1744373914684,-189.45643911,0.0002,2]
[357710414,1744373914708,-1122985.64759859,0.0002,2]
[357710415,1744374014422,-161.6282696,0.00019399,2]
[357710416,1744374014443,-191.42473531,0.000197,3]
[357710417,1744374014464,-232.26326,0.00019788,2]
[357710418,1744374014486,-300.0,0.00019791,2]
[357710419,1744374014509,-16337.23059928,0.00019792,2]
[357710420,1744374014530,-166.73895871,0.00019798,2]
[357710421,1744374014552,-22938.4203,0.000198,2]
[357710422,1744374014572,-216.94323893,0.000198,2]
[357710423,1744374014592,-16337.23059923,0.00019804,2]
[357710424,1744374014613,-16337.23059923,0.00019816,2]
[357710425,1744374014634,-16337.23059923,0.00019828,2]
[357710426,1744374014656,-16337.23059923,0.0001984,2]
[357710427,1744374014677,-16337.23059923,0.00019852,2]
[357710428,1744374014698,-500.0,0.00019873,2]
[357710429,1744374014718,-160.42925407,0.00019873,2]
[357710430,1744374014739,-499.54190584,0.00019873,2]
[357710431,1744374014760,-501.26977671,0.00019873,2]
[357710432,1744374014782,-152.45,0.00019881,2]
[357710433,1744374014802,-627.89,0.00019882,2]
[357710434,1744374014825,-35119.14481955,0.00019886,2]
[357710435,1744374014846,-35119.14481949,0.00019888,2]
[357710436,1744374014878,-35119.14481949,0.00019889,2]
[357710437,1744374014900,-35119.14481949,0.00019891,2]
[357710438,1744374014923,-35119.14481949,0.00019892,2]
[357710439,1744374015141,-35119.14481949,0.00019894,2]
[357710440,1744374015168,-35119.14481949,0.00019895,2]
[357710441,1744374015190,-35119.14481949,0.00019897,2]
[357710442,1744374015212,-35119.14481949,0.00019898,2]
[357710443,1744374015234,-190.92618022,0.000199,2]
[357710444,1744374015255,-12190.81415294,0.000199,2]
[357710445,1744374015276,-35119.14481949,0.000199,2]
[357710446,1744374015297,-839.6694096,0.000199,2]
[357710447,1744374015318,-515.94759182,0.00019973,2]
[357710448,1744374015340,-500.0,0.00019973,2]
[357710449,1744374015360,-14488.9033503,0.00019986,2]
[357710450,1744374015382,-588.2200342,0.00019986,2]
[357710451,1744374015404,-22476.6776615,0.00019986,2]
[357710452,1744374015426,-627.89,0.0001999,2]
[357710453,1744374015447,-570.0,0.0002,2]
[357710454,1744374015471,-4240968.92294518,0.0002,2]
[357710455,1744374015496,-587568.38718468,0.0002,2]
[357710456,1744374086283,-658.67,0.0001839,2]
[357710457,1744374086310,-161.6282696,0.00019399,2]
[357710458,1744374086337,-2533.94628199,0.00019776,2]
[357710459,1744374086365,-16337.23059923,0.00019864,2]
[357710460,1744374086391,-500.0,0.00019873,2]
[357710461,1744374086419,-16337.23059923,0.00019876,2]
[357710462,1744374086447,-16337.23059923,0.00019888,2]
[357710463,1744374086474,-16337.23059923,0.000199,2]
[357710464,1744374086500,-180.15320705,0.000199,2]
[357710465,1744374086527,-190.9261802,0.000199,2]
[357710466,1744374086553,-500.0,0.00019973,2]
[357710467,1744374086578,-278.96032742,0.0001999,2]
[357710468,1744374086604,-278.96032742,0.0001999,2]
[357710469,1744374086631,-278.96032742,0.0001999,2]
[357710470,1744374086656,-300.0,0.00019999,2]
[357710471,1744374086682,-190.46010835,0.00019999,2]
[357710472,1744374086708,-237.44868994,0.00019999,2]
[357710473,1744374086738,-239.91205023,0.00019999,2]
[357710474,1744374086765,-512.0,0.0002,2]
[357710475,1744374086794,-46430.08547132,0.0002,2]
[357710476,1744374086821,-141087.39894019,0.0002,2]
[357710477,1744374087107,-1038784.1348439,0.0002,2]
[357710478,1744374138640,400.0,0.00044225,30]
[357710481,1744374538645,700.04,0.00027425,30]
[357710501,1744374631544,-300.0,0.00018905,2]
[357710502,1744374631611,-842.363655,0.00018905,2]
[357710503,1744374631621,-250.0,0.00019,2]
[357710504,1744374631631,-200.0,0.00019107,7]
[357710505,1744374631640,-1212.43551591,0.00019107,2]
[357710506,1744374631652,-1040.35448409,0.00019107,2]
[357710507,1744374631661,-250.0,0.00019496,2]
[357710508,1744374631671,-492.67,0.00019756,2]
[357710509,1744374631680,-436.53991627,0.000198,2]
[357710511,1744374637582,-185.21344852,0.00019007,2]
[357710512,1744374637592,-294.06661346,0.000198,2]
[357710513,1744374637603,-500.0,0.00019873,2]
[357710514,1744374637613,-875.19448667,0.00019886,2]
[357710515,1744374637623,-875.19448665,0.00019888,2]
[357710516,1744374637633,-875.19448665,0.00019889,2]
[357710517,1744374637643,-875.19448665,0.00019891,2]
[357710518,1744374637652,-3155.14543546,0.00019892,2]
[357710519,1744374637664,-1003.23586154,0.00019892,2]
[357710520,1744374637676,-1003.44475325,0.00019892,2]
[357710521,1744374637765,-638.17394975,0.00019892,2]
[357710522,1744374637775,-23178.3950487,0.00019892,2]
[357710523,1744374637785,-875.19448665,0.00019892,2]
[357710524,1744374637792,-875.19448665,0.00019894,2]
[357710525,1744374637799,-875.19448665,0.00019895,2]
[357710526,1744374637806,-875.19448665,0.00019897,2]
[357710527,1744374637813,-875.19448665,0.00019898,2]
[357710528,1744374637820,-6439.8585683,0.000199,2]
[357710529,1744374637830,-25498.70612382,0.000199,2]
[357710530,1744374637943,-59209.38710788,0.000199,2]
[357710531,1744374637953,-171.86426737,0.000199,2]
[357710532,1744374637963,-5800.0,0.000199,2]
[357710533,1744374637972,-175.1347804,0.000199,2]
[357710534,1744374637982,-485.49731921,0.000199,2]
[357710535,1744374637991,-1371.4725,0.000199,2]
[357710536,1744374638001,-875.19448665,0.000199,2]
[357710537,1744374638010,-190.9261802,0.000199,2]
[357710538,1744374638020,-500.0,0.00019973,2]
[357710539,1744374638030,-500.0,0.00019973,2]
[357710540,1744374638040,-11507.758358,0.00019986,2]
[357710541,1744374638050,-467.5596183,0.00019986,2]
[357710542,1744374638059,-17692.3616295,0.00019986,2]
[357710543,1744374638071,-966.2857763,0.00019986,2]
[357710544,1744374638081,-918.0286025,0.00019986,2]
[357710545,1744374638091,-1117.87658047,0.00019999,5]
[357710546,1744374638100,-5847.89672155,0.00019999,2]
[357710547,1744374638111,-166.21408295,0.00019999,2]
[357710548,1744374638121,-167.93843516,0.00019999,2]
[357710549,1744374638131,-150.0,0.0002,2]
[357710550,1744374638141,-566.61842696,0.0002,2]
[357710551,1744374638152,-150.0,0.0002,2]
[357710553,1744374638163,-855.69233926,0.0002,2]
[357710555,1744374638172,-1515231.44574155,0.0002,2]
[357710556,1744374638184,-340033.78431041,0.0002,2]
[357710557,1744374639773,-185.2134485,0.00019404,2]
[357710558,1744374639785,-576.58419558,0.0002,2]
[357710559,1744374639844,-3263.91164678,0.0002,2]
[357710560,1744374639857,-307.73300286,0.0002,2]
[357710561,1744374640030,-282.88688717,0.0002,2]
[357710572,1744374645106,-185.2134485,0.000198,2]
[357710573,1744374645118,-715825.66627116,0.0002,2]
[357710585,1744374645652,-261187.78668027,0.0002,2]
[357710587,1744374645663,-344.10978337,0.0002,2]
[357710588,1744374645732,-5226.96990874,0.0002,2]
[357710589,1744374645796,-3166.7511614,0.0002,2]
[357710590,1744374645808,-183724.59273475,0.0002,2]
[357710591,1744374645820,-1483.09999999,0.0002,2]
[357710592,1744374645832,-3517.19999,0.0002,2]
[357710604,1744374646062,-2768.28971485,0.0002,2]
[357710740,1744374647476,-0.00059873,0.0002,2]
[357711264,1744374724538,151.0,0.00044229,30]
[357711265,1744374725206,151.0,0.00044229,30]
[357711266,1744374725979,151.0,0.00044229,30]
[357711267,1744374726700,151.0,0.00044229,30]
[357711268,1744374727377,151.0,0.00044229,30]
[357711270,1744375085118,50000.0,0.00044229,30]
[357711271,1744375089300,50000.0,0.00044229,31]
[357711272,1744375095628,50000.0,0.00044229,32]
[357711273,1744375098836,50000.0,0.00044229,33]
[357711274,1744375138665,168.18,0.00025748,120]
[357711275,1744375138904,168.18,0.00028966,120]
[357711277,1744375218172,150.0,0.00044224,30]
[357711309,1744375785423,10000.0,0.00044225,30]
[357711310,1744375798678,500.0,0.00044225,30]
[357711311,1744375799763,10000.0,0.00044225,30]
[357711317,1744375831982,-1144.29,0.00017393,2]
[357711318,1744375831991,-250.0,0.00017709,2]
[357711319,1744375832001,-250.0,0.00018026,2]
[357711320,1744375832011,-200.0,0.00018727,7]
[357711321,1744375832021,-250.0,0.00018773,2]
[357711322,1744375832030,-250.0,0.00018874,2]
[357711323,1744375832040,-500.0,0.00018904,2]
[357711324,1744375832050,-1276.43,0.00018926,2]
[357711325,1744375832059,-34.3605592,0.00018964,2]
[357711352,1744375837696,-1132.17,0.00018964,2]
[357711354,1744375837916,-897.3494408,0.00018964,2]
[357711355,1744375837926,-250.4805592,0.00019087,2]
[357711356,1744375837972,-99.4394408,0.00019087,2]
[357711357,1744375837982,-1403.37,0.00019087,2]
[357711358,1744375837992,-250.0,0.00019132,2]
[357711359,1744375838001,-250.0,0.00019132,2]
[357711360,1744375838011,-433.83385873,0.00019168,2]
[357711361,1744375838022,-566.16614127,0.00019168,2]
[357711362,1744375838031,-55.83498794,0.00019182,2]
[357711363,1744375838085,-251.44501206,0.00019182,2]
[357711365,1744375838094,-1557.93,0.00019191,2]
[357711367,1744375838103,-23900.0,0.00019207,2]
[357711368,1744375838113,-500.0,0.0001926,2]
[357711369,1744375838122,-168.18,0.00019311,2]
[357711370,1744375838131,-150.0,0.00019528,2]
[357711371,1744375838140,-150.0,0.00019528,2]
[357711372,1744375838149,-150.0,0.00019528,2]
[357711373,1744375838158,-150.0,0.00019528,2]
[357711374,1744375838167,-163.0,0.00019528,2]
[357711375,1744375838176,-442.24,0.00019578,2]
[357711376,1744375838186,-1144.29,0.00019657,2]
[357711377,1744375838195,-10103.58789418,0.000199,2]
[357711378,1744375838205,-408.88020981,0.000199,2]
[357711379,1744375838214,-1371.4725,0.000199,2]
[357711380,1744375838232,-5800.0,0.000199,2]
[357711381,1744375838244,-1969.2231528,0.000199,2]
[357711382,1744375838254,-1903.79295625,0.000199,2]
[357711383,1744375838264,-170.39044802,0.000199,2]
[357711384,1744375838274,-8445.53270536,0.000199,2]
[357711385,1744375838283,-208.12486476,0.000199,2]
[357711386,1744375838293,-559.7796064,0.000199,2]
[357711387,1744375838303,-1101.26,0.00019929,2]
[357711388,1744375838312,-2499.0,0.00019973,2]
[357711389,1744375838322,-506.80863295,0.00019973,2]
[357711390,1744375838331,-500.0,0.00019973,2]
[357711391,1744375838341,-500.0,0.00019973,2]
[357711392,1744375838351,-363.63512475,0.00019973,2]
[357711393,1744375838362,-500.0,0.00019973,2]
[357711394,1744375838371,-500.0,0.00019973,2]
[357711395,1744375838381,-164.251,0.00019979,2]
[357711396,1744375838390,-2209.542,0.00019979,2]
[357711397,1744375838400,-8848.6096936,0.00019986,2]
[357711398,1744375838410,-538.3859563,0.00019986,2]
[357711399,1744375838420,-48596.1233243,0.00019986,2]
[357711400,1744375838430,-505.1421978,0.00019986,2]
[357711401,1744375838444,-2155.1137457,0.00019986,2]
[357711402,1744375838454,-164.16,0.0001999,2]
[357711403,1744375838463,-164.16,0.0001999,2]
[357711404,1744375838473,-164.16,0.0001999,2]
[357711405,1744375838486,-164.16,0.0001999,2]
[357711406,1744375838496,-1117.87658047,0.00019999,5]
[357711407,1744375838506,-166.21408295,0.00019999,2]
[357711408,1744375838517,-167.93843516,0.00019999,2]
[357711409,1744375838527,-553972.45635958,0.0002,2]
[357711410,1744375838538,-79444.07623135,0.0002,2]
[357711411,1744375838548,-300.44946588,0.0002,2]
[357711412,1744375838558,-94827.36,0.0002,2]
[357711413,1744375838567,-250.0,0.0002,2]
[357711414,1744375838578,-741441.31475937,0.0002,2]
[357711415,1744375838591,-340033.78431041,0.0002,2]
[357711420,1744375839943,-1999.20541905,0.0002,2]
[357711421,1744375840265,-500.08933967,0.0002,2]
[357711431,1744375842699,-1618.75368924,0.0002,2]
[357711433,1744375844571,-758.57759602,0.0002,2]
[357711434,1744375845784,-7514.32513947,0.0002,2]
[357711435,1744375845902,-1061062.25028344,0.0002,2]
[357711436,1744375845913,-1397.06338829,0.0002,2]
[357711437,1744375845962,-3677.59427964,0.0002,2]
[357711438,1744375845973,-6299.59792918,0.0002,2]
[357711439,1744375846021,-549.97235173,0.0002,2]
[357711440,1744375846032,-762.51500018,0.0002,2]
[357711441,1744375846080,-1041.98334023,0.0002,2]
[357711443,1744375947961,6369.0,0.00044225,30]
[357711444,1744376066927,653.37,0.00027425,30]
[357711445,1744376197375,9573.0,0.00044225,30]
[357711446,1744376223728,500.0,0.00044225,30]
[357711447,1744376224013,500.0,0.00044225,30]
[357711448,1744376224233,500.0,0.00044225,30]
[357711449,1744376224484,500.0,0.00044225,30]
[357711450,1744376224546,2587.89,0.00044225,30]
[357711451,1744376224733,500.0,0.00044225,30]
[357711452,1744376224949,2587.89,0.00044225,30]
[357711453,1744376224982,500.0,0.00044225,30]
[357711454,1744376225037,500.0,0.00044225,30]
[357711455,1744376225218,2587.89,0.00044225,30]
[357711456,1744376225256,500.0,0.00044225,30]
[357711457,1744376225294,500.0,0.00044225,30]
[357711458,1744376225350,41267.13,0.00044225,30]
[357711459,1744376225471,500.0,0.00044225,30]
[357711460,1744376225505,2587.89,0.00044225,30]
[357711461,1744376225566,500.0,0.00044225,30]
[357711462,1744376225604,41267.13,0.00044225,30]
[357711463,1744376225760,500.0,0.00044225,30]
[357711464,1744376225794,2587.89,0.00044225,30]
[357711465,1744376225833,500.0,0.00044225,30]
[357711466,1744376225867,41267.13,0.00044225,30]
[357711467,1744376225982,500.0,0.00044225,30]
[357711468,1744376226016,2587.89,0.00044225,30]
[357711469,1744376226069,500.0,0.00044225,30]
[357711470,1744376226102,41267.13,0.00044225,30]
[357711471,1744376226223,1279.36,0.00044225,30]
[357711472,1744376226255,500.0,0.00044225,30]
[357711473,1744376226289,2587.89,0.00044225,30]
[357711474,1744376226331,500.0,0.00044225,30]
[357711475,1744376226404,41267.13,0.00044225,30]
[357711476,1744376226519,500.0,0.00044225,30]
[357711477,1744376226558,2587.89,0.00044225,30]
[357711478,1744376226602,500.0,0.00044225,30]
[357711479,1744376226636,1279.36,0.00044225,30]
[357711480,1744376226669,41267.13,0.00044225,30]
[357711481,1744376226763,2587.89,0.00044225,30]
[357711482,1744376226796,500.0,0.00044225,30]
[357711483,1744376227079,500.0,0.00044225,30]
[357711484,1744376227112,1279.36,0.00044225,30]
[357711485,1744376227150,41267.13,0.00044225,30]
[357711486,1744376227186,2587.89,0.00044225,30]
[357711487,1744376227217,511.55033722,0.00044225,30]
[357711488,1744376227247,500.0,0.00044225,30]
[357711489,1744376227277,1279.36,0.00044225,30]
[357711490,1744376227307,41267.13,0.00044225,30]
[357711491,1744376227339,2587.89,0.00044225,30]
[357711492,1744376227368,500.0,0.00044225,30]
[357711493,1744376227397,1279.36,0.00044225,30]
[357711494,1744376227429,41267.13,0.00044225,30]
[357711495,1744376227609,500.0,0.00044225,30]
[357711496,1744376227640,41267.13,0.00044225,30]
[357711497,1744376227671,1279.36,0.00044225,30]
[357711498,1744376227844,2587.89,0.00044225,30]
[357711499,1744376227876,41267.13,0.00044225,30]
[357711500,1744376227905,500.0,0.00044225,30]
[357711501,1744376227935,1279.36,0.00044225,30]
[357711502,1744376228103,41267.13,0.00044225,30]
[357711503,1744376228136,2587.89,0.00044225,30]
[357711504,1744376228208,1279.36,0.00044225,30]
[357711505,1744376228333,41267.13,0.00044225,30]
[357711506,1744376228367,2587.89,0.00044225,30]
[357711507,1744376229296,1279.36,0.00044225,30]
[357711508,1744376229509,500.0,0.00044225,30]
[357711509,1744376229572,41267.13,0.00044225,30]
[357711510,1744376229924,2587.89,0.00044225,30]
[357711511,1744376229970,563.13,0.00044225,30]
[357711512,1744376230000,41267.13,0.00044225,30]
[357711513,1744376230030,1279.36,0.00044225,30]
[357711514,1744376230071,506.98959328,0.00044225,30]
[357711515,1744376230104,2587.89,0.00044225,30]
[357711516,1744376230145,563.13,0.00044225,30]
[357711517,1744376230175,41267.13,0.00044225,30]
[357711518,1744376230207,622.60767272,0.00044225,30]
[357711519,1744376230238,2587.89,0.00044225,30]
[357711520,1744376230298,563.13,0.00044225,30]
[357711521,1744376230331,41267.13,0.00044225,30]
[357711522,1744376230363,2587.89,0.00044225,30]
[357711523,1744376230400,1279.36,0.00044225,30]
[357711524,1744376230435,41267.13,0.00044225,30]
[357711525,1744376230466,563.13,0.00044225,30]
[357711526,1744376230498,2587.89,0.00044225,30]
[357711527,1744376230528,563.13,0.00044225,30]
[357711528,1744376230567,41267.13,0.00044225,30]
[357711529,1744376230603,2587.89,0.00044225,30]
[357711530,1744376230643,563.13,0.00044225,30]
[357711531,1744376230674,41267.13,0.00044225,30]
[357711532,1744376230711,1279.36,0.00044225,30]
[357711533,1744376230743,41267.13,0.00044225,30]
[357711534,1744376230778,563.13,0.00044225,30]
[357711535,1744376230809,1279.36,0.00044225,30]